bitfinex-derivatives/quotes_SOLF0:USTF0_20240906
["timestamp","ask_amount","ask_price","bid_price","bid_amount"]
[1725609373374,0.05146955,128.47,128.45,3.8933]
[1725609373570,0.05146955,128.47,128.44,0.05353163]
[1725609374675,0.05146955,128.47,128.46,3.8932]
[1725609378993,29.93,128.56,128.45,29.93]
[1725609379277,3.8905,128.55,128.48,29.93]
[1725609379478,1.6133,128.57,128.53,3.891]
[1725609379687,3.79931744,128.56,128.53,3.891]
[1725609379875,7.68961744,128.56,128.53,3.891]
[1725609380072,7.73932141,128.56,128.53,3.94267637]
[1725609380275,0.04970397,128.56,128.55,3.8905]
[1725609389591,3.85444009,128.56,128.53,0.05167637]
[1725609390787,3.94000397,128.56,128.53,3.94257637]
[1725609391195,0.04970397,128.56,128.53,0.05167637]
[1725609391390,0.04970397,128.56,128.54,3.8906]
[1725609392187,3.93990397,128.56,128.54,3.8906]
[1725609395697,0.04970397,128.56,128.54,3.8906]
[1725609396089,3.94000397,128.56,128.54,3.8906]
[1725609396886,3.94000397,128.56,128.53,3.94257637]
[1725609397098,3.94000397,128.56,128.53,0.05167637]
[1725609397099,3.8908,128.54,128.53,0.05167637]
[1725609399696,3.8908,128.54,128.46,29.93]
[1725609399697,3.892,128.5,128.46,29.93]
[1725609399892,3.892,128.5,128.46,3.83578073]
[1725609400095,3.8918,128.51,128.48,3.8924]
[1725609400287,3.8918,128.51,128.46,3.9836782]
[1725609400491,29.93,128.54,128.45,29.93]
[1725609400692,0.05228666,128.51,128.49,3.8921]
[1725609401095,0.05228666,128.51,128.48,0.05286277]
[1725609401502,0.05228666,128.51,128.49,3.8923]
[1725609401797,0.05228666,128.51,128.48,0.05286277]
[1725609402298,337.0,128.61,128.49,29.93]
[1725609402501,29.93,128.57,128.51,3.8915]
[1725609402706,33.80348555,128.57,128.51,3.8915]
[1725609403001,33.80348555,128.57,128.47,29.93]
[1725609403197,33.80348555,128.57,128.51,0.05121574]
[1725609403399,0.05142565,128.53,128.51,0.05121574]
[1725609403793,0.05142565,128.53,128.51,3.94271574]
[1725609405103,0.05142565,128.53,128.52,3.8914]
[1725609406111,0.05142565,128.53,128.52,7.87873112]
[1725609406596,0.05142565,128.53,128.52,3.8914]
[1725609407107,0.05142565,128.53,128.52,7.8376376]
[1725609407402,0.05142565,128.53,128.52,3.8914]
[1725609407593,0.05142565,128.53,128.52,7.70295638]
[1725609410012,0.05142565,128.53,128.52,3.8914]
[1725609410711,0.05142565,128.53,128.52,7.80921975]
[1725609411813,0.05142565,128.53,128.51,3.94261574]
[1725609412709,3.94252565,128.53,128.51,3.94261574]
[1725609412913,0.05142565,128.53,128.51,3.94261574]
[1725609413115,0.05142565,128.53,128.52,3.8914]
[1725609414214,3.94252565,128.53,128.51,3.94271574]
[1725609415022,0.05142565,128.53,128.52,3.8914]
[1725609415705,0.05142565,128.53,128.51,3.94271574]
[1725609416108,3.94252565,128.53,128.51,3.94271574]
[1725609416317,0.05142565,128.53,128.51,3.94271574]
[1725609416614,0.05142565,128.53,128.52,3.8914]
[1725609418614,3.8914,128.52,128.51,0.05121574]
[1725609418817,0.05142565,128.53,128.51,0.05121574]
[1725609419318,3.94262565,128.53,128.51,3.94261574]
[1725609419721,0.05142565,128.53,128.51,12.01121574]
[1725609420125,0.05142565,128.53,128.52,3.8914]
[1725609421920,0.05142565,128.53,128.52,15.8514]
[1725609424933,1.5805,128.59,128.54,3.8905]
[1725609425228,3.8897,128.58,128.54,11.96]
[1725609425419,3.8897,128.58,128.55,3.8904]
[1725609425818,3.83919328,128.6,128.54,11.96]
[1725609426018,0.05117767,128.58,128.56,0.05545938]
[1725609426434,3.94077767,128.58,128.56,0.05545938]
[1725609426929,12.01117767,128.58,128.56,0.05545938]
[1725609427130,11.96,128.53,128.47,1.5186]
[1725609427328,1.4826,128.57,128.48,3.85290649]
[1725609427628,3.8909,128.54,128.51,3.8915]
[1725609427830,11.96,128.55,128.49,11.96]
[1725609428122,0.05849019,128.53,128.51,0.05049614]
[1725609428330,0.05849019,128.53,128.51,3.94209614]
[1725609428920,0.05849019,128.53,128.52,3.8914]
[1725609430331,594.9,128.62,128.56,3.8901]
[1725609430625,3.8895,128.59,128.56,3.8901]
[1725609430933,7.82358771,128.59,128.56,3.8901]
[1725609431427,3.9404715,128.59,128.57,3.8898]
[1725609432530,3.9404715,128.59,128.56,3.93899858]
[1725609433027,3.8896,128.58,128.56,3.93899858]
[1725609434931,3.8899,128.57,128.56,0.04899858]
[1725609446743,0.0509715,128.59,128.56,0.04899858]
[1725609447136,0.0509715,128.59,128.57,3.8897]
[1725609448039,3.9403715,128.59,128.57,3.8897]
[1725609448243,4.0362134,128.59,128.56,0.04899858]
[1725609448739,3.8899,128.57,128.56,0.04899858]
[1725609450141,3.8897,128.58,128.56,0.04899858]
[1725609450342,3.8897,128.58,128.56,3.93909858]
[1725609450648,3.8897,128.58,128.56,0.04899858]
[1725609454550,4.0362134,128.59,128.56,0.04899858]
[1725609454551,3.8899,128.57,128.56,0.04899858]
[1725609454748,33.7899,128.57,128.56,0.04899858]
[1725609454951,29.9,128.53,128.39,15.5807]
[1725609455250,3.8918,128.51,128.48,3.8924]
[1725609456050,3.9456823,128.51,128.48,3.94996207]
[1725609456558,3.8923,128.49,128.48,0.05756207]
[1725609457552,7.76233225,128.49,128.48,0.05756207]
[1725609457750,29.9,128.5,128.44,3.8937]
[1725609458047,29.9,128.5,128.42,3.83461307]
[1725609458646,0.0527483,128.47,128.45,0.05664717]
[1725609458846,3.8932,128.46,128.45,0.05664717]
[1725609459044,7.74227989,128.46,128.45,0.05664717]
[1725609459459,3.8932,128.46,128.45,0.05664717]
[1725609459950,7.82678518,128.46,128.45,0.05664717]
[1725609460146,29.9,128.46,128.37,0.02]
[1725609460366,3.8947,128.41,128.38,3.8954]
[1725609461247,3.94932766,128.41,128.38,3.9525215]
[1725609461849,0.05462766,128.41,128.38,0.0571215]
[1725609462749,3.94952766,128.41,128.38,3.9527215]
[1725609463146,0.05462766,128.41,128.38,3.9527215]
[1725609463351,0.05462766,128.41,128.39,3.8951]
[1725609464251,0.05462766,128.41,128.39,3.8953]
[1725609464949,0.05462766,128.41,128.4,3.895]
[1725609468555,3.0672,128.5,128.4,29.9]
[1725609468748,3.0672,128.5,128.41,1.4868]
[1725609468958,3.8932,128.46,128.43,3.8939]
[1725609469149,3.0672,128.5,128.42,3.84629376]
[1725609469457,32.9672,128.5,128.41,3.0983]
[1725609469757,3.8933,128.46,128.45,0.0567383]
[1725609470164,3.95143655,128.47,128.45,0.0567383]
[1725609470464,0.05843655,128.47,128.45,0.0567383]
[1725609470759,0.05843655,128.47,128.45,3.9499383]
[1725609470961,0.05843655,128.47,128.45,0.0567383]
[1725609472368,0.05843655,128.47,128.46,3.8932]
[1725609476367,106.72714783,128.54,128.5,3.8917]
[1725609476565,3.8912,128.53,128.5,3.8917]
[1725609476758,105.21094783,128.54,128.46,29.9]
[1725609476959,3.8913,128.53,128.47,1.5595]
[1725609477167,105.21094783,128.54,128.47,1.5595]
[1725609477352,0.05747668,128.51,128.49,0.05211897]
[1725609477968,29.95747668,128.51,128.49,0.05211897]
[1725609478267,3.892,128.5,128.49,0.05211897]
[1725609481870,3.8934,128.46,128.43,3.0945]
[1725609482071,7.8677949,128.46,128.43,3.0945]
[1725609482262,7.8677949,128.46,128.43,6.9884]
[1725609482767,3.8937,128.45,128.43,1.58081632]
[1725609482964,4.03415777,128.46,128.43,0.04981632]
[1725609483361,3.8938,128.44,128.43,0.04981632]
[1725609488663,3.8951,128.4,128.37,0.02]
[1725609489369,3.8951,128.4,128.37,3.9158]
[1725609489568,0.04939134,128.4,128.37,0.07055432]
[1725609489772,0.04939134,128.4,128.38,3.8956]
[1725609489967,0.04939134,128.4,128.37,0.07055432]
[1725609490569,0.04939134,128.4,128.39,3.8953]
[1725609490965,0.04939134,128.4,128.37,0.07055432]
[1725609491875,3.94439134,128.4,128.38,3.8955]
[1725609492668,0.04939134,128.4,128.38,3.8955]
[1725609494276,0.04939134,128.4,128.39,3.8953]
[1725609498787,3.8936,128.45,128.38,33.0186]
[1725609499481,3.8933,128.46,128.4,29.9]
[1725609499889,0.05751597,128.44,128.43,3.8941]
[1725609509192,0.05751597,128.44,128.42,3.94621915]
[1725609509391,0.05751597,128.44,128.42,0.05191915]
[1725609510692,3.95151597,128.44,128.42,0.05191915]
[1725609511093,0.05751597,128.44,128.42,0.05191915]
[1725609511295,3.8941,128.43,128.42,0.05191915]
[1725609511790,7.75363563,128.43,128.42,0.05191915]
[1725609514099,3.8951,128.4,128.37,0.02]
[1725609514298,7.73477095,128.4,128.37,0.02]
[1725609514689,3.8951,128.4,128.37,0.02]
[1725609514887,3.97874994,128.4,128.37,0.02]
[1725609515192,0.05007383,128.4,128.38,3.8956]
[1725609515594,0.05007383,128.4,128.38,3.8954]
[1725609516796,3.94507383,128.4,128.38,3.8954]
[1725609517387,3.8953,128.39,128.37,3.97206237]
[1725609517601,3.8311186,128.38,128.37,0.07626237]
[1725609518003,3.8956,128.38,128.37,0.07626237]
[1725609518195,7.86624458,128.38,128.37,0.07626237]
[1725609519099,0.05007383,128.4,128.37,0.07626237]
[1725609521001,0.05007383,128.4,128.39,3.8953]
[1725609524305,3.94507383,128.4,128.38,3.8955]
[1725609524494,3.94507383,128.4,128.37,0.07626237]
[1725609524495,0.05007383,128.4,128.37,0.07626237]
[1725609526209,3.8956,128.38,128.37,0.07626237]
[1725609526905,3.8975,128.32,128.24,7.7997]
[1725609527098,132.7123678,128.35,128.25,4.7003]
[1725609527299,132.7123678,128.35,128.26,29.9]
[1725609527605,136.70513938,128.35,128.26,33.79806748]
[1725609527898,0.0544912,128.32,128.29,0.05945371]
[1725609528496,0.0544912,128.32,128.29,3.95765371]
[1725609528697,0.0544912,128.32,128.29,3.98441248]
[1725609529099,3.9518912,128.32,128.29,3.98441248]
[1725609529609,3.9518912,128.32,128.29,3.96441248]
[1725609530098,3.9518912,128.32,128.29,0.03945371]
[1725609530402,3.9518912,128.32,128.29,3.85053775]
[1725609531200,3.9518912,128.32,128.29,7.74883775]
[1725609531402,0.0544912,128.32,128.29,3.85053775]
[1725609531899,0.0544912,128.32,128.29,7.74873775]
[1725609533103,3.9519912,128.32,128.29,7.74873775]
[1725609537117,3.9519912,128.32,128.29,3.93765371]
[1725609537412,3.9519912,128.32,128.29,7.82233661]
[1725609539407,3.9519912,128.32,128.29,3.93765371]
[1725609539608,3.8979,128.31,128.29,0.03945371]
[1725609540418,3.9520912,128.32,128.29,3.93765371]
[1725609541010,3.8978,128.31,128.29,3.93765371]
[1725609541620,3.8978,128.31,128.29,0.03945371]
[1725609542523,3.8978,128.31,128.29,3.93765371]
[1725609545123,3.9520912,128.32,128.29,3.93765371]
[1725609546023,0.0544912,128.32,128.31,3.8977]
[1725609546424,0.0544912,128.32,128.29,0.03945371]
[1725609546629,0.0544912,128.32,128.3,3.8979]
[1725609546839,0.0544912,128.32,128.29,0.03945371]
[1725609547133,228.0,128.4,128.29,0.03945371]
[1725609547428,3.0295,128.43,128.34,29.9]
[1725609547622,29.9,128.41,128.35,3.066]
[1725609547825,36.8267474,128.43,128.35,3.066]
[1725609548139,0.05374736,128.4,128.38,0.05376666]
[1725609549232,0.05374736,128.4,128.39,3.8953]
[1725609553539,0.05374736,128.4,128.38,3.94916666]
[1725609554338,0.05374736,128.4,128.38,0.05376666]
[1725609554938,3.8953,128.39,128.38,0.05376666]
[1725609556933,3.94894736,128.4,128.38,0.05376666]
[1725609558033,3.8953,128.39,128.38,0.05376666]
[1725609558836,0.05374736,128.4,128.38,0.05376666]
[1725609558837,0.05374736,128.4,128.38,3.94916666]
[1725609560139,0.05374736,128.4,128.38,0.05376666]
[1725609560739,3.94894736,128.4,128.38,0.05376666]
[1725609561542,0.05374736,128.4,128.38,3.94936666]
[1725609562545,3.94894736,128.4,128.38,0.05376666]
[1725609565140,3.8953,128.39,128.38,0.05376666]
[1725609566141,3.94884736,128.4,128.38,0.05376666]
[1725609568255,0.05374736,128.4,128.38,3.94926666]
[1725609569744,3.94874736,128.4,128.38,3.94926666]
[1725609570050,0.05374736,128.4,128.38,0.05376666]
[1725609570351,3.8953,128.39,128.38,0.05376666]
[1725609574451,33.7953,128.39,128.38,0.05376666]
[1725609574648,3.8311253,128.38,128.32,3.8810067]
[1725609575455,3.8311253,128.38,128.33,3.897]
[1725609575754,0.05171593,128.37,128.34,0.05264206]
[1725609575958,3.8965,128.35,128.34,0.05264206]
[1725609577248,3.8985,128.29,128.11,7.795]
[1725609577446,29.9,128.29,128.2,32.9288]
[1725609577650,3.82928561,128.3,128.22,29.9]
[1725609577949,0.28682313,128.29,128.22,29.9]
[1725609578153,3.90296321,128.29,128.22,33.85403074]
[1725609578451,3.8997,128.25,128.24,0.05372113]
[1725609578754,4.18660138,128.25,128.24,0.05372113]
[1725609578955,3.8997,128.25,128.24,0.05372113]
[1725609579159,4.18662495,128.25,128.24,0.05372113]
[1725609579357,4.18662495,128.25,128.21,3.9138784]
[1725609579358,3.9005,128.22,128.21,3.9138784]
[1725609579569,29.9,128.23,128.14,3.0305]
[1725609579945,3.9012,128.2,128.15,1.565]
[1725609580351,0.05024979,128.19,128.16,0.05994667]
[1725609581050,0.05024979,128.19,128.16,3.96194667]
[1725609581460,0.05024979,128.19,128.16,0.05994667]
[1725609581855,0.05024979,128.19,128.16,3.96214667]
[1725609583155,0.05024979,128.19,128.16,0.05994667]
[1725609584249,0.05024979,128.19,128.16,3.96194667]
[1725609584653,0.05024979,128.19,128.16,0.05994667]
[1725609586062,0.05024979,128.19,128.17,3.902]
[1725609587066,0.05024979,128.19,128.16,3.96214667]
[1725609587864,0.05024979,128.19,128.17,3.9019]
[1725609588053,464.05491702,128.37,128.18,29.9]
[1725609588262,29.9,128.28,128.18,29.9]
[1725609588460,3.9,128.24,128.18,29.9]
[1725609588659,29.9,128.26,128.17,29.9]
[1725609588865,29.9,128.24,128.17,3.90510426]
[1725609589063,29.95781877,128.22,128.19,0.05264384]
[1725609589263,29.9,128.2,128.19,0.05264384]
[1725609589962,33.8012,128.2,128.19,0.05264384]
[1725609590362,3.9012,128.2,128.19,0.05264384]
[1725609590865,3.9009,128.21,128.19,0.05264384]
[1725609591164,29.95781877,128.22,128.19,0.05264384]
[1725609591762,0.05781877,128.22,128.19,0.05264384]
[1725609591961,3.9009,128.21,128.19,0.05264384]
[1725609592159,0.05781877,128.22,128.19,0.05264384]
[1725609592389,0.05781877,128.22,128.2,3.9009]
[1725609592763,29.9,128.27,128.19,0.05264384]
[1725609592970,3.8995,128.26,128.23,3.8999]
[1725609593265,29.9,128.27,128.23,3.96950639]
[1725609593473,3.8996,128.25,128.22,3.9003]
[1725609593671,29.9,128.27,128.23,3.90553202]
[1725609593872,33.7996,128.25,128.24,0.05931965]
[1725609594171,33.7996,128.25,128.2,1.5554]
[1725609594172,34.01054484,128.25,128.19,3.99604984]
[1725609594375,29.9,128.23,128.16,1.5554]
[1725609594678,29.9,128.23,128.16,5.40240756]
[1725609594979,3.95159952,128.21,128.18,0.04973871]
[1725609595377,0.05049952,128.21,128.18,0.04973871]
[1725609595680,3.9011,128.2,128.18,3.95143871]
[1725609595875,3.9011,128.2,128.18,0.04973871]
[1725609596473,33.8014,128.19,128.18,0.04973871]
[1725609596773,29.9,128.19,128.13,3.903]
[1725609596974,3.0824,128.22,128.13,3.92623395]
[1725609597184,29.9,128.19,128.14,3.9028]
[1725609597382,29.9,128.19,128.15,3.95356182]
[1725609597578,3.9024,128.16,128.11,1.4395]
[1725609597778,3.9024,128.16,128.13,3.903]
[1725609597984,0.05099178,128.15,128.13,7.82259718]
[1725609598780,0.05099178,128.15,128.13,3.903]
[1725609599079,0.05099178,128.15,128.13,7.83235714]
[1725609599484,0.05099178,128.15,128.12,0.05557028]
[1725609599485,29.95099178,128.15,128.12,0.05557028]
[1725609599790,3.95379178,128.15,128.12,0.05557028]
[1725609599988,0.05099178,128.15,128.12,0.05557028]
[1725609600563,0.05099178,128.15,128.13,3.82228772]
[1725609600712,0.05099178,128.15,128.12,0.05557028]
[1725609601008,3.9032,128.13,128.12,0.05557028]
[1725609603986,23.42,128.19,128.12,0.05557028]
[1725609604195,27.35340149,128.19,128.12,3.93156981]
[1725609604488,3.9025,128.16,128.13,3.903]
[1725609604785,23.42,128.23,128.11,3.9036]
[1725609604985,3.9036,128.12,128.08,3.0997]
[1725609605189,23.42,128.16,128.08,7.02138681]
[1725609605388,23.42,128.16,128.1,3.904]
[1725609605590,3.9035,128.13,128.1,3.98065073]
[1725609605894,3.9035,128.13,128.08,3.0997]
[1725609605895,3.9035,128.13,128.11,3.9038]
[1725609606081,23.42,128.2,128.08,3.0997]
[1725609606480,23.42,128.2,128.14,3.9028]
[1725609606685,3.9022,128.17,128.15,3.83448333]
[1725609608094,3.9023,128.16,128.15,3.83448333]
[1725609608291,3.9023,128.16,128.15,1.83448333]
[1725609608488,3.9023,128.16,128.14,3.9028]
[1725609608691,3.9023,128.16,128.14,3.852053]
[1725609608889,0.2871008,128.19,128.08,3.0997]
[1725609609295,0.05990717,128.15,128.08,3.0997]
[1725609609601,0.05990717,128.15,128.12,0.04975737]
[1725609609895,3.9017,128.18,128.12,4.02222568]
[1725609610100,0.2871008,128.19,128.13,1.4572]
[1725609610492,0.2871008,128.19,128.14,1.5336]
[1725609610802,0.0539279,128.18,128.15,0.05645417]
[1725609610993,3.9023,128.16,128.15,0.05645417]
[1725609611189,0.0539279,128.18,128.15,0.05645417]
[1725609611893,3.9557279,128.18,128.15,3.95895417]
[1725609612493,0.0539279,128.18,128.16,3.9022]
[1725609612988,0.2871008,128.19,128.15,0.05645417]
[1725609613309,23.42,128.25,128.14,1.5336]
[1725609613598,3.9005,128.22,128.14,1.5336]
[1725609613797,3.9005,128.22,128.19,3.9012]
[1725609614095,23.47532672,128.22,128.19,0.05330993]
[1725609614901,3.901,128.21,128.19,0.05330993]
[1725609615502,0.05532672,128.22,128.19,0.05330993]
[1725609615901,3.9011,128.2,128.19,0.05330993]
[1725609616696,27.3211,128.2,128.19,0.05330993]
[1725609616899,27.3211,128.2,128.13,1.4572]
[1725609616900,3.9027,128.15,128.13,1.4572]
[1725609617103,23.42,128.2,128.12,3.80558381]
[1725609617304,1.461,128.19,128.05,1.4379]
[1725609617611,3.9031,128.14,128.11,3.9037]
[1725609617903,3.95790439,128.14,128.11,7.94284657]
[1725609618108,3.95790439,128.14,128.11,3.96319955]
[1725609618300,3.9033,128.13,128.11,0.05949955]
[1725609618608,23.47480439,128.14,128.11,0.05949955]
[1725609619112,3.95780439,128.14,128.11,7.79229994]
[1725609619298,0.05480439,128.14,128.11,0.05949955]
[1725609619696,0.05480439,128.14,128.12,3.9034]
[1725609620702,0.05480439,128.14,128.13,3.9032]
[1725609625607,1.5001,128.21,128.12,4.4685]
[1725609625608,3.9018,128.18,128.15,3.9023]
[1725609625910,1.5001,128.21,128.15,3.9023]
[1725609626099,1.5001,128.21,128.12,4.4685]
[1725609626100,3.9021,128.17,128.12,4.4685]
[1725609626306,1.5001,128.21,128.12,4.4685]
[1725609626508,3.9022,128.17,128.15,0.05952207]
[1725609626710,0.05107961,128.18,128.15,0.05952207]
[1725609627214,27.3223,128.16,128.15,0.05952207]
[1725609627808,3.9021,128.17,128.15,0.05952207]
[1725609628906,3.9021,128.17,128.15,3.96212207]
[1725609629218,3.95287961,128.18,128.15,3.96212207]
[1725609629420,3.95287961,128.18,128.15,0.05952207]
[1725609629625,3.95287961,128.18,128.16,3.9023]
[1725609629810,0.05107961,128.18,128.15,0.05952207]
[1725609630523,0.05107961,128.18,128.17,3.902]
[1725609636816,1.4039,128.25,128.17,37.47]
[1725609637414,3.9001,128.24,128.21,3.9006]
[1725609637620,1.4039,128.25,128.21,3.9006]
[1725609637822,3.95978931,128.24,128.22,0.05581032]
[1725609639219,3.9002,128.23,128.22,0.05581032]
[1725609640322,3.95998931,128.24,128.22,3.95631032]
[1725609640627,3.98496668,128.3,128.22,0.05581032]
[1725609640927,3.8994,128.26,128.23,3.9]
[1725609641515,3.95266562,128.26,128.23,3.9]
[1725609642023,0.05326562,128.26,128.24,3.8998]
[1725609642823,0.05326562,128.26,128.25,3.8996]
[1725609646329,0.05326562,128.26,128.22,4.03024095]
[1725609646726,0.05326562,128.26,128.24,3.8997]
[1725609647136,0.05326562,128.26,128.22,4.03024095]
[1725609647334,0.05326562,128.26,128.25,3.8996]
[1725609648026,0.05326562,128.26,128.25,33.8796]
[1725609648838,3.8982,128.3,128.27,3.8989]
[1725609649638,1.4358,128.31,128.26,3.899]
[1725609649940,0.0506071,128.3,128.27,0.0534608]
[1725609650138,0.0506071,128.3,128.2,1.5324]
[1725609650139,53.73737683,128.3,128.21,33.8806]
[1725609650350,0.28676973,128.29,128.22,3.84875337]
[1725609651137,0.28676973,128.29,128.23,3.9]
[1725609651343,0.28676973,128.29,128.24,0.0506265]
[1725609651533,0.28682684,128.28,128.24,0.0506265]
[1725609651734,53.4,128.3,128.24,0.0506265]
[1725609652043,0.28682726,128.29,128.24,0.0506265]
[1725609652835,3.8995,128.26,128.24,0.0506265]
[1725609653342,3.8995,128.26,128.24,3.9504265]
[1725609653538,3.94888351,128.26,128.24,3.9504265]
[1725609655336,0.04938351,128.26,128.24,0.0506265]
[1725609655537,0.04938351,128.26,128.25,33.8796]
[1725609656148,1.4358,128.31,128.27,3.8988]
[1725609656355,1.4358,128.31,128.27,33.8788]
[1725609656539,3.8983,128.3,128.27,33.8788]
[1725609656946,18.82020077,128.38,128.28,29.98]
[1725609657153,18.82020077,128.38,128.25,3.98277626]
[1725609657154,3.8969,128.34,128.3,29.98]
[1725609657343,3.94889019,128.34,128.32,0.05751448]
[1725609659152,3.94889019,128.34,128.32,3.95471448]
[1725609659740,3.8971,128.33,128.32,0.05751448]
[1725609659940,60.89,128.35,128.25,3.88438005]
[1725609660143,24.8513,128.32,128.22,37.47]
[1725609660343,23.42,128.3,128.2,38.8907]
[1725609660643,0.28678681,128.29,128.2,37.47]
[1725609660949,0.28678681,128.29,128.17,3.0262]
[1725609660950,0.05787564,128.26,128.23,0.05472897]
[1725609661448,3.8999,128.24,128.23,0.05472897]
[1725609662644,0.05787564,128.26,128.23,0.05472897]
[1725609663951,3.8997,128.25,128.23,0.05472897]
[1725609664945,3.95717564,128.26,128.23,3.95482897]
[1725609665855,0.05787564,128.26,128.24,37.47]
[1725609666459,1.4307,128.36,128.24,37.47]
[1725609666659,1.82200037,128.35,128.27,37.47]
[1725609666950,0.28670037,128.34,128.25,38.9753]
[1725609667353,3.8982,128.3,128.28,0.05412242]
[1725609668046,3.94971859,128.31,128.28,0.05412242]
[1725609668250,0.05191859,128.31,128.28,0.05412242]
[1725609668853,0.05191859,128.31,128.29,3.8982]
[1725609670253,0.05191859,128.31,128.28,0.05412242]
[1725609670254,3.94971859,128.31,128.28,3.95272242]
[1725609671151,1.5353,128.35,128.29,37.47]
[1725609671340,1.4307,128.36,128.31,37.47]
[1725609671748,5.3271,128.36,128.33,3.8969]
[1725609672156,3.8964,128.36,128.33,3.8971]
[1725609672454,3.9496997,128.36,128.33,3.94974911]
[1725609672851,3.9496997,128.36,128.34,3.8968]
[1725609673058,3.9496997,128.36,128.33,0.05264911]
[1725609673558,3.9496997,128.36,128.33,3.94964911]
[1725609674057,0.0532997,128.36,128.35,3.8965]
[1725609674658,0.0532997,128.36,128.34,37.47]
[1725609675059,3.9495997,128.36,128.34,37.47]
[1725609676060,3.9495997,128.36,128.33,3.94954911]
[1725609676448,3.9495997,128.36,128.34,3.8968]
[1725609676862,0.0532997,128.36,128.34,37.47]
[1725609677059,0.0532997,128.36,128.35,41.3665]
[1725609677362,0.0532997,128.36,128.34,37.47]
[1725609677665,0.0532997,128.36,128.33,3.94964911]
[1725609678754,3.9496997,128.36,128.33,3.94964911]
[1725609679151,0.0532997,128.36,128.33,3.94964911]
[1725609679364,0.0532997,128.36,128.35,3.8965]
[1725609684758,0.0532997,128.36,128.35,7.7706159]
[1725609684955,0.0532997,128.36,128.35,3.8965]
[1725609685766,0.0532997,128.36,128.35,41.3665]
[1725609688760,113.26382251,128.43,128.38,3.8955]
[1725609689062,113.26382251,128.43,128.35,37.47]
[1725609689264,150.73382251,128.43,128.33,41.28057385]
[1725609689482,150.73382251,128.43,128.31,38.9547]
[1725609689483,37.47,128.41,128.31,38.9547]
[1725609689666,1.69480974,128.4,128.32,3.89854313]
[1725609689859,3.8964,128.36,128.35,0.05245299]
[1725609690460,0.05418179,128.37,128.29,3.88217579]
[1725609690660,1.4007,128.38,128.29,3.88217579]
[1725609690967,3.897,128.34,128.31,3.8977]
[1725609691566,3.94758339,128.34,128.31,3.95743419]
[1725609691763,0.05058339,128.34,128.31,0.05973419]
[1725609691961,3.8972,128.33,128.31,0.05973419]
[1725609693064,3.8974,128.32,128.31,0.05973419]
[1725609693661,3.8981,128.3,128.26,3.899]
[1725609693966,3.8981,128.3,128.24,41.34238057]
[1725609694174,1.5428,128.32,128.24,41.34238057]
[1725609694361,1.5428,128.32,128.24,37.47]
[1725609694565,1.5428,128.32,128.25,3.90673935]
[1725609694767,1.5428,128.32,128.27,0.05224855]
[1725609694768,0.04916282,128.29,128.27,0.05224855]
[1725609696369,0.04916282,128.29,128.27,3.95104855]
[1725609697579,3.8986,128.28,128.27,0.05224855]
[1725609705283,3.94766282,128.29,128.27,0.05224855]
[1725609705585,0.04916282,128.29,128.27,0.05224855]
[1725609705790,3.8986,128.28,128.27,0.05224855]
[1725609706084,29.98,128.29,128.21,31.388]
[1725609706781,3.9,128.24,128.21,35.2885]
[1725609707083,3.9,128.24,128.21,35.34077691]
[1725609707276,0.05100163,128.24,128.21,0.05227691]
[1725609708086,3.9003,128.23,128.21,0.05227691]
[1725609709883,3.9005,128.22,128.21,0.05227691]
[1725609710089,0.05100163,128.24,128.21,0.05227691]
[1725609710478,3.95110163,128.24,128.21,3.95297691]
[1725609710675,0.05100163,128.24,128.21,0.05227691]
[1725609711176,3.9002,128.23,128.21,0.05227691]
[1725609712688,3.9002,128.23,128.21,3.95297691]
[1725609712885,3.95100163,128.24,128.21,3.95297691]
[1725609713779,0.05100163,128.24,128.21,0.05227691]
[1725609714385,0.05100163,128.24,128.22,3.9002]
[1725609715685,0.05100163,128.24,128.23,3.9002]
[1725609715887,0.05100163,128.24,128.21,0.05227691]
[1725609716079,0.05100163,128.24,128.22,3.9003]
[1725609719094,0.05100163,128.24,128.23,3.9002]
[1725609724088,0.05100163,128.24,128.21,1.44957691]
[1725609724308,0.05100163,128.24,128.21,0.05227691]
[1725609725490,0.05100163,128.24,128.23,3.9002]
[1725609725678,0.05100163,128.24,128.21,0.05227691]
[1725609726387,0.05100163,128.24,128.22,3.9002]
[1725609727189,0.05100163,128.24,128.23,3.9002]